Cogmind - Beta 15 @@@ ROGUE MODE // 2025.06.23 @ 20:04:09 Player: dorusv Result: Destroyed by G-47 Trooper with Particle Gun Performance ------------- Evolutions (2) 1000 Regions Visited (5) 1000 Robots Destroyed (53) 265 Value Destroyed (1625) 1625 Prototype IDs (3) 60 Alien Tech Used (0) 0 Bonus (250) 250 TOTAL SCORE: 4200 Bonus ------- Follower Combat Kills 271 Friendly Fire -21 Cogmind --------- Core Integrity 0/550 Matter 142/300 Energy 90/100 System Corruption 11% Temperature Cool (12) Movement Flying (35) Location -8/Storage Parts ------- > --- POWER (2) -------- (None) > --- PROPULSION (2) --- Improved VTOL Module > --- UTILITY (4) ------ (None) > --- WEAPON (3) ------- (None) > --- INVENTORY (5) ---- Ion Engine Aluminum Leg Carbon-fiber Leg Large Storage Unit Trap Scanner Peak State ------------ > --- POWER ------------ Deuterium Engine Light Nuclear Core > --- PROPULSION ------- Aluminum Leg Carbon-fiber Leg > --- UTILITY ---------- Huge Storage Unit Compact Battery Advanced Weight Redist. System Improved Light Armor Plating > --- WEAPON ----------- Advanced Beam Cannon Grenade Launcher Rocket Launcher > --- INVENTORY -------- Ion Engine Light Ion Engine Light Ion Engine Light Nuclear Core Aluminum Leg Wheel Large Storage Unit Small Laser Beam Rifle Assault Rifle Shock Bomb Launcher Shock Bomb Launcher [Rating: 27] Favorites ----------- Power Light Ion Engine Engine Light Ion Engine Power Core Light Nuclear Core Propulsion Wheel Leg Aluminum Leg Wheel Wheel Flight Unit Improved VTOL Module Utility Huge Storage Unit Device Advanced Weight Redist. System Storage Huge Storage Unit Protection Improved Light Armor Plating Weapon Assault Rifle Energy Gun Heavy EM Shotgun Energy Cannon Advanced Beam Cannon Ballistic Gun Assault Rifle Launcher Rocket Launcher Build | -11 -10 -9 -9 -8 -8 ------- Run | Yrd Mat Mat Min Mat Sto Slots Evolved 4 | . . 2 . 2 . Power 1 | . . 1 . . . Propulsion . | . . . . . . Utility 2 | . . . . 2 . Weapon 1 | . . 1 . . . Parts Attached 37 | 7 2 2 . 20 6 Power 7 | 1 . 1 . 5 . Engine 3 | 1 . 1 . 1 . Core 4 | . . . . 4 . Reactor . | . . . . . . Propulsion 11 | 2 . . . 7 2 Treads . | . . . . . . Leg 3 | . . . . 3 . Wheel 7 | 2 . . . 4 1 Hover . | . . . . . . Flight 1 | . . . . . 1 Utility 8 | 2 2 . . 4 . Device 3 | 1 . . . 2 . Storage 4 | 1 2 . . 1 . Processor . | . . . . . . Hackware . | . . . . . . Protection 1 | . . . . 1 . Artifact . | . . . . . . Weapon 11 | 2 . 1 . 4 4 Energy Gun 1 | . . . . . 1 Energy Cannon 1 | . . . . 1 . Ballistic Gun 3 | 2 . . . . 1 Ballistic Cannon . | . . . . . . Launcher 6 | . . 1 . 3 2 Special Weapon . | . . . . . . Impact Weapon . | . . . . . . Slashing Weapon . | . . . . . . Piercing Weapon . | . . . . . . Special Melee Weapon . | . . . . . . Unidentified Prototypes 3 | . . . . 1 2 Corrupted Parts 1 | . . . . . 1 System Corruption 10 | . . . . . 10 Parts Lost 27 | . . . . 11 16 Power 5 | . . . . 1 4 Propulsion 7 | . . . . 3 4 Utility 4 | . . . . 2 2 Weapon 11 | . . . . 5 6 Highest Loss Streak 14 | . . . . 6 14 To Critical Strikes . | . . . . . . Average Backups 10 | 2 7 7 8 11 15 Power 2 | . 1 . 1 3 5 Propulsion 2 | 1 2 2 2 3 4 Utility 1 | . . 1 1 1 1 Weapon 4 | . 3 4 4 4 4 Tool/Special . | . . . . . . Unused Backups 4 | . . . . . 4 Power 1 | . . . . . 1 Propulsion . | . . . . . . Utility 1 | . . . . . 1 Weapon 2 | . . . . . 2 Tool/Special . | . . . . . . Average Slot Usage (%) 91 | . 100 99 100 91 71 Engine 11 | . 14 22 22 9 . Core 4 | . . . . 8 4 Leg 1 | . . . . 2 . Wheel 15 | . 28 22 22 11 11 Device 11 | . 14 11 11 13 7 Storage 14 | . 14 11 11 14 18 Protection 4 | . . . . 6 7 Energy Cannon 4 | . . . . 6 7 Ballistic Gun 10 | . 28 22 22 5 . Launcher 10 | . . 10 11 13 8 Peak Build Rating 27 | 7 8 10 10 27 27 Average Rating 16 | 5 7 9 10 20 21 On Entrance 9 | . 7 8 10 10 23 Naked Turns 1 | . . . . . 1 Heaviest Build 109 | 13 88 97 97 109 107 Greatest Support 34 | 20 20 20 20 34 10 Greatest Overweight (x) 29 | . 4 4 4 9 29 Average Overweight (x) 3 | . . 4 4 4 8 Largest Inventory Capacity 25 | 8 25 25 25 25 25 Average Capacity 22 | 7 13 25 25 25 24 Most Carried 18 | 4 9 8 8 18 18 Average Carried 10 | 2 7 7 8 12 15 Final Capacity 25 | 8 25 25 25 25 5 Final Carried 17 | 4 9 8 8 17 5 Class Distribution -------------------- 45% | Tank 31% | Mutant 22% | Gunner Dominant Class ---------------- Mutant | -10/Materials Gunner | -9/Materials Gunner | -9/Mines Tank | -8/Materials Tank | -8/Storage Resources | -11 -10 -9 -9 -8 -8 ----------- Run | Yrd Mat Mat Min Mat Sto Matter Collected 1052 | 306 24 18 35 639 30 Remotely . | . . . . . . Salvage Created 1876 | 109 89 18 . 903 757 Parts 103 | 5 4 4 . 49 41 Haulers Intercepted 2 | . . . . . 2 Recyclers Shooed 2 | . . . 1 1 . Parts Field Recycled . | . . . . . . Retrieved Matter . | . . . . . . Parts Self-Destructed . | . . . . . . Prevented . | . . . . . . Kills | -11 -10 -9 -9 -8 -8 ------- Run | Yrd Mat Mat Min Mat Sto Combat Hostiles Destroyed 37 | . 2 . . 23 12 Guns 6 | . 2 . . 2 2 Cannons 9 | . . . . 8 1 AOE 22 | . . . . 13 9 Classes Destroyed 13 | 2 1 1 . 7 2 Worker 5 | . . . . 3 2 Builder 2 | . . . . 2 . Tunneler 2 | 2 . . . . . Hauler 2 | . . . . . 2 Recycler 3 | 1 . . . 2 . Mechanic 1 | . . . . . 1 Watcher 1 | . . 1 . . . Swarmer 6 | . . . . 6 . Grunt 20 | . 2 . . 10 8 Brawler 3 | . . . . 1 2 Duelist 2 | . . . . 1 1 Sentry 4 | . . . . 4 . Hunter 2 | . . . . 1 1 Best Kill Streak 15 | 3 2 1 . 11 15 Combat Bots Only 10 | . 2 . . 8 10 Max Kills in Single Turn 3 | 1 1 1 . 3 3 Gunslinging . | . . . . . . Exploded 2 | . . . . 2 2 Melee . | . . . . . . Uniques/NPCs Destroyed . | . . . . . . Combat | -11 -10 -9 -9 -8 -8 -------- Run | Yrd Mat Mat Min Mat Sto Hostile Shots Fired 172 | . 1 . 2 107 62 Missed 50 | . . . 1 31 18 Hits 122 | . 1 . 1 76 44 Melee 5 | . . . . . 5 Projectile 117 | . 1 . 1 76 39 Critical Strikes 6 | . . . . 2 4 Damage Taken 2453 | . 15 . 10 1373 1055 Core 551 | . . . . 269 282 Absorbed by Shields 93 | . . . . 93 . Core Remaining (%) 100 | 100 100 . 100 . . Volleys Fired 85 | 6 4 1 . 53 21 Largest 3 | 2 2 3 . 3 3 Hottest 148 | 40 40 73 . 131 148 Shots Fired 157 | 12 8 3 . 95 39 Gun 60 | 12 8 2 . 23 15 Cannon 44 | . . . . 39 5 Launcher 53 | . . 1 . 33 19 Special . | . . . . . . Kinetic 51 | 12 8 2 . 23 6 Thermal 44 | . . . . 39 5 Explosive 43 | . . 1 . 33 9 Electromagnetic 19 | . . . . . 19 Robot Hit Streak 7 | 3 2 1 . 7 6 Robot Miss Streak 4 | 2 1 1 . 4 2 Penetration Max . | . . . . . . Secondary Targets . | . . . . . . Shots Hit Robots 81 | 7 4 1 . 44 25 Core Hits 111 | 3 3 1 . 54 50 Critical Kills . | . . . . . . Critical Parts Destroyed . | . . . . . . Critical Strikes . | . . . . . . Melee Attacks . | . . . . . . Impact . | . . . . . . Slashing . | . . . . . . Piercing . | . . . . . . Sneak Attacks . | . . . . . . Combat Hostiles . | . . . . . . Follow-up Attacks . | . . . . . . Damage Inflicted 3567 | 87 65 15 . 1867 1533 Guns 534 | 87 54 15 . 152 226 Cannons 573 | . . . . 510 63 Explosions 2397 | . . . . 1157 1240 Melee . | . . . . . . Ramming 63 | . 11 . . 48 4 Kinetic 370 | 87 54 15 . 152 62 Thermal 603 | . . . . 510 93 Explosive 2094 | . . . . 1157 937 Electromagnetic 437 | . . . . . 437 Impact . | . . . . . . Slashing . | . . . . . . Piercing . | . . . . . . Highest Corruption 11 | . . . . 1 11 Average Corruption 1 | . . . . 1 1 Corruption Purged . | . . . . . . Corruption Blocked . | . . . . . . Effects 8 | . . . . 5 3 Message Errors 1 | . . . . . 1 Matter Fused 3 | . . . . 2 1 Energy Discharges 1 | . . . . 1 . Data Loss (minor) 2 | . . . . 2 . Alerts 1 | . . . . . 1 Overload Shots . | . . . . . . Overflow Damage 72 | . 1 . . 28 43 Projectiles 1 | . . . . 1 . Explosions 70 | . . . . 27 43 Melee 1 | . 1 . . . . Knockbacks 1 | . 1 . . . . Impact 1 | . 1 . . . . Kinetic . | . . . . . . Secondary . | . . . . . . Self-Inflicted Damage 553 | . 5 . . 278 270 Shots 19 | . . . . 8 11 Rammed 5 | . 1 . 1 2 1 Targets Rammed 5 | . 1 . 1 2 1 Kicked . | . . . . . . Crushed . | . . . . . . Highest Temperature 591 | . . 18 . 591 161 Average Temperature 169 | . . 12 . 199 72 Received Heat Transfer 860 | . 6 . . 440 414 Effects 22 | . . . . 22 . Shutdowns 7 | . . . . 7 . Energy Bleed 2 | . . . . 2 . Interference 3 | . . . . 3 . Matter Decay 2 | . . . . 2 . Short Circuit 2 | . . . . 2 . Damage (minor) 4 | . . . . 4 . Damage (core) 2 | . . . . 2 . Siege Activations . | . . . . . . Martial Activations . | . . . . . . Shielding Activations . | . . . . . . Robots Disrupted . | . . . . . . Combat Hostiles . | . . . . . . Robots Corrupted . | . . . . . . Combat Hostiles . | . . . . . . Parts Fried 3 | . . . . . 3 Impact Corruptions 1 | . 1 . . . . Robots Melted . | . . . . . . Combat Hostiles . | . . . . . . Parts Melted 2 | . . . . 1 1 Heat Transferred 1136 | . . . . 925 211 Parts Sabotaged . | . . . . . . Parts Stolen . | . . . . . . Parts Stripped . | . . . . . . Power Chain Reactions 6 | . . . . . 6 Alert | -11 -10 -9 -9 -8 -8 ------- Run | Yrd Mat Mat Min Mat Sto Maximum Alert Level 1 | . . . . 1 1 Low Security (%) 76 | 100 100 100 100 59 71 Level 1 23 | . . . . 40 28 Level 2 . | . . . . . . Level 3 . | . . . . . . Level 4 . | . . . . . . Level 5 . | . . . . . . High Security . | . . . . . . Max Security . | . . . . . . Peak Influence 395 | 10 50 30 94 395 375 Initial 120 | . . . . 32 120 Average 117 | 1 16 3 15 187 166 Influence Increases 1693 | 15 62 38 104 928 546 Destroy 0b10 Robot/C 960 | . 40 . 80 500 340 Destroy 0b10 Robot/NC 90 | 15 . 5 . 35 35 Destroy Leader 186 | . 10 2 10 110 54 Allied During Kill 46 | . . . 14 9 23 Successful Hack 39 | . 12 8 . 12 7 Disable Machine 105 | . . 15 . 60 30 Destroy Structure 252 | . . 8 . 187 57 Lose Combat Pursuer 15 | . . . . 15 . Influence Decreases 1377 | 15 62 38 20 725 517 Entered New Map 219 | . . . . 52 167 Time Decay 658 | 15 62 38 20 373 150 Lost Part 270 | . . . . 110 160 Lost Ally 80 | . . . . 40 40 Purge Threat 150 | . . . . 150 . Squads Dispatched 11 | . 1 1 . 3 6 Investigation 3 | . 1 . . 2 . Extermination . | . . . . . . Reinforcement 5 | . . 1 . 1 3 Assault 2 | . . . . . 2 Garrison 1 | . . . . . 1 Intercept . | . . . . . . Searches Triggered . | . . . . . . Construction Impeded 1 | . . . . . 1 Haulers Reinforced . | . . . . . . Active Scanning Responses . | . . . . . . Cargo Convoy Interrupts . | . . . . . . Stealth | -11 -10 -9 -9 -8 -8 --------- Run | Yrd Mat Mat Min Mat Sto Distress Signals 6 | . . . . 2 4 Communications Jammed . | . . . . . . Distress Signals . | . . . . . . Times Spotted 67 | . 4 2 4 28 29 Peak Tracking Total 8 | . 2 1 4 8 8 Tactical Retreats 1 | . . . . 1 . Traps | -11 -10 -9 -9 -8 -8 ------- Run | Yrd Mat Mat Min Mat Sto Traps Triggered 1 | . . . . . 1 Indirectly . | . . . . . . Trap Hack Attempts . | . . . . . . Triggered . | . . . . . . Disarmed 1 | . . 1 . . . Reprogrammed . | . . . . . . Reused . | . . . . . . Traps Extracted . | . . . . . . Installed . | . . . . . . Triggered . | . . . . . . Machines | -11 -10 -9 -9 -8 -8 ---------- Run | Yrd Mat Mat Min Mat Sto Machines Disabled 7 | . . 1 . 4 2 Max in Single Turn 1 | . . 1 . 1 1 Machines Repaired . | . . . . . . Machines Dismantled . | . . . . . . Machines Sabotaged . | . . . . . . Overloaded Fab Kills . | . . . . . . Hacking | -11 -10 -9 -9 -8 -8 --------- Run | Yrd Mat Mat Min Mat Sto Machines Accessed 8 | . 3 1 1 2 1 Terminals 8 | . 3 1 1 2 1 Fabricators . | . . . . . . Repair Stations . | . . . . . . Recycling Units . | . . . . . . Scanalyzers . | . . . . . . Garrison Access . | . . . . . . Total Hacks 27 | . 12 5 2 7 1 Successful 13 | . 5 3 1 3 1 Failed 14 | . 7 2 1 4 . Catastrophic 2 | . 1 . . 1 . Database Lockouts . | . . . . . . Manual 2 | . . . . 2 . Terminals 27 | . 12 5 2 7 1 Fabricators . | . . . . . . Repair Stations . | . . . . . . Recycling Units . | . . . . . . Scanalyzers . | . . . . . . Garrison Access . | . . . . . . Terminal Hacks 13 | . 5 3 1 3 1 Open Door 1 | . . . . . 1 Branch Access Points 1 | . . . . 1 . Emergency Access Points 2 | . . 1 . 1 . Unreport Threat 1 | . . . . 1 . Locate Traps 2 | . 1 1 . . . Disarm Traps 1 | . . 1 . . . Dispatch Records 2 | . 2 . . . . Maintenance Status 1 | . 1 . . . . Registered Prototypes 1 | . 1 . . . . Zone Layout 1 | . . . 1 . . Fabricator Hacks . | . . . . . . Repair Station Hacks . | . . . . . . Recycling Unit Hacks . | . . . . . . Scanalyzer . | . . . . . . Garrison Access Hacks . | . . . . . . Unauthorized Hacks . | . . . . . . Terminals . | . . . . . . Fabricators . | . . . . . . Repair Stations . | . . . . . . Recycling Units . | . . . . . . Scanalyzers . | . . . . . . Garrison Access . | . . . . . . Data Cores Recovered . | . . . . . . Used . | . . . . . . Hacking Detections 7 | . 3 1 . 2 1 Full Trace Events 6 | . 3 1 . 2 . Feedback Events 1 | . . . . 1 . Corruption 1 | . . . . 1 . Feedback Blocked . | . . . . . . Robot Schematics Acquired . | . . . . . . Robots Built . | . . . . . . Authchips . | . . . . . . Time . | . . . . . . Total Robot Build Rating . | . . . . . . Part Schematics Acquired . | . . . . . . Parts Built . | . . . . . . Authchips . | . . . . . . Time . | . . . . . . Total Part Build Rating . | . . . . . . Parts Repaired . | . . . . . . Time . | . . . . . . Parts Recycled . | . . . . . . Recycled Matter . | . . . . . . Retrieved Matter . | . . . . . . Retrieved Components . | . . . . . . Parts Scanalyzed . | . . . . . . Part Schematics Acquired . | . . . . . . Parts Damaged . | . . . . . . Bothacking | -11 -10 -9 -9 -8 -8 ------------ Run | Yrd Mat Mat Min Mat Sto Used RIF Installer . | . . . . . . Robots Hacked . | . . . . . . Non-combat . | . . . . . . Combat . | . . . . . . Robot Hacks Applied . | . . . . . . Relay Couplers Released . | . . . . . . Fabnet Peak Effective % . | . . . . . . Robots Rewired . | . . . . . . Allies Hacked . | . . . . . . Hacks Repelled . | . . . . . . Allies | -11 -10 -9 -9 -8 -8 -------- Run | Yrd Mat Mat Min Mat Sto Total Allies 5 | . . . 3 . 2 Largest Group 3 | . . . 3 3 2 Highest-Rated Group 62 | . . . 40 40 62 Highest-Rated Ally 31 | . . . 16 16 31 Total Orders . | . . . . . . Ally Attacks 62 | . . . 20 16 26 Total Damage 801 | . . . 205 196 400 Kills 11 | . . . 4 2 5 Allies Corrupted . | . . . . . . Allies Melted 1 | . . . . . 1 Intel | -11 -10 -9 -9 -8 -8 ------- Run | Yrd Mat Mat Min Mat Sto Active Infowar (turns) 938 | 35 176 286 163 278 . Seismic 938 | 35 176 286 163 278 . Robot Analysis Total . | . . . . . . Derelict Logs Recovered . | . . . . . . Drone Launches . | . . . . . . Drone Recoveries . | . . . . . . Exploration | -11 -10 -9 -9 -8 -8 ------------- Run | Yrd Mat Mat Min Mat Sto Turns Passed 1988 | 112 176 286 163 933 318 Spaces Moved 1169 | 101 169 198 108 483 110 Core 6 | 4 . . . . 2 Treads . | . . . . . . Legs 35 | . . . . 35 . Wheels 1124 | 97 169 198 108 448 104 Hover . | . . . . . . Flight 4 | . . . . . 4 Fastest Speed 35 | 50 80 140 140 125 35 Average Speed 142 | 78 93 140 140 157 218 Slowest Speed 1500 | 80 140 140 140 470 1500 Overloaded Moves . | . . . . . . Propulsion Burnouts . | . . . . . . Robots Hopped . | . . . . . . Potential Cave-ins 7 | . . . . 7 . Cave-ins Triggered . | . . . . . . Exploration Rate (%) 21 | 5 30 15 27 35 18 Regions Visited 5 Branch Regions 2 Pre-discovered Areas . | . . . . . . Known Exits Taken 1 | . . . . 1 . Unknown Exits Taken 4 | 1 1 1 1 . . Scrap Searched . | . . . . . . Spaces Dug . | . . . . . . Terrain Destroyed 282 | . . 5 . 213 64 Melee . | . . . . . . Projectile . | . . . . . . AOE 282 | . . 5 . 213 64 Terrain Rammed . | . . . . . . Walls Destroyed . | . . . . . . Machines Disabled . | . . . . . . Actions | -11 -10 -9 -9 -8 -8 --------- Run | Yrd Mat Mat Min Mat Sto Total 1339 | 117 180 204 119 569 150 Wait 21 | . . 3 11 2 5 Move 1164 | 100 168 197 107 482 110 Hop . | . . . . . . Pick Up 17 | 4 4 1 . 7 1 Fast Attach 16 | 7 . . . 7 2 Attach 17 | . . 2 . 7 8 Detach 3 | . . . . 3 . Swap 8 | . 2 . . 6 . Drop 1 | . 1 . . . . Fire 85 | 6 4 1 . 53 21 Melee . | . . . . . . Ram 5 | . 1 . 1 2 1 Kick . | . . . . . . Crush . | . . . . . . Escape Stasis . | . . . . . . Rewire 2 | . . . . . 2 Trap . | . . . . . . Miscellaneous . | . . . . . . Route ------- -11/Scrapyard -10/Materials -9/Materials -9/Mines -8/Materials (discovered 3 exits: [*Fac] / *Sto x2) -8/Storage History --------- Turn | Location | Event 17 | -11/Scrapyard | Discovered new exit (range 15) 113 | -11/Scrapyard | Entered Materials 215 | -10/Materials | Discovered new exit (range 15) 289 | -10/Materials | Entered another Materials area 289 | -9/Materials | Evolved 2 slots: Power x1, Weapon x1 555 | -9/Materials | Discovered new exit (range 12) 575 | -9/Materials | Entered Mines 596 | -9/Mines | Build established: Gunner 637 | -9/Mines | Assisted by bots powering up and referring to "LRC-V3" 690 | -9/Mines | Discovered new exit (range 10) 738 | -9/Mines | Entered Materials 738 | -8/Materials | Accompanied by 3 allies 738 | -8/Materials | Evolved 2 slots: Utility x2 1047 | -8/Materials | Lost 6 parts (1n2u3w) 1323 | -8/Materials | Build established: Tank 1324 | -8/Materials | Destroyed 8 combat bots 1541 | -8/Materials | Identified exit to Storage 1556 | -8/Materials | Discovered new exit (range 16) 1671 | -8/Materials | Entered Storage 1717 | -8/Storage | Met a pair of Derelict thieves 1918 | -8/Storage | Core integrity fell below 50% 1919 | -8/Storage | Garrison activated, responded to threat 1962 | -8/Storage | Destroyed 10 combat bots 1969 | -8/Storage | Core integrity fell below 20% 1986 | -8/Storage | Released all parts (2) 1988 | -8/Storage | System corruption reached 10% 1989 | -8/Storage | Destroyed by G-47 Trooper with Particle Gun Last Messages --------------- 01979_ R-06 Scavenger collects Corrupted Prototype Flight Unit. 01979_ Lgt. Nuclear Core destroyed. 01979_ U-05 Engineer lays Concrete. 01980_ U-05 Engineer builds a Wall. 01983_ U-05 Engineer lays Concrete. 01984_ U-05 Engineer builds a Wall. 01984_ U-05 Engineer lays Concrete. 01986_ K-01 Serf collects debris. 01986_ R-06 Scavenger collects Prototype Flight Unit. 01986_ Released Huge Storage Unit. 01986_ Released Com. Battery. 01987_ W-25 Informer sends out distress signal. 01987_ Acquired Corrupted Prototype Flight Unit. 01987_ Identified Imp. VTOL Module. 01987_ Integrated Corrupted Imp. VTOL Module (+10). 01987_ U-05 Engineer builds a Wall. 01988_ U-05 Engineer lays Concrete. 01989_ The unstable cave ceiling collapses. 01989_ Corrupted Carbon-fiber Leg crushed. 01989_ U-05 Engineer lays Concrete. Map ----- +----------------------------------------------------+ | | | | | | | | | | | | | ?????????????????????????????????????????????????? | | ?????????????????????????????????????????????????? | | ?????????????????????????????????????????????????? | | ?????????????????????????????????????????????????? | | ?????????????????????????????????????????????????? | | ?????????????????????????????????????????????????? | | ?????????????????????????????????????????????????? | | ?????????????????????????????????????????????????? | | ?????????????##???????????????????????????#####??? | | ????????????# ??????????#####???????????# ^#??? | | ????????????# ?????????#!!!#???????????# #??? | | ????????????# ????????#!! #???????????# #??? | | ????????????# ####???# ##??????????# #??? | | ????????????# #### T#?########## #??? | | ????????????# #= = #+#### ] / ## #??? | | ????????????####" # =/##### + ## #??? | | ????????? =%= %= gg]%=u [%## ## #??? | | ???????????????## ==#!*!k !! /*"# ## #??? | | ???????????????## ####=![[ !%"# ## #??? | | ??????????????????????##r@* == # ## #??? | | ??????????????????????##uw % % * ## #??? | | ???????????????????????# % % % ## #??? | | ???????????????????????# " = =% ## #??? | | ???????????????????????+ "" " % ## #??? | | ?????????????????????? # ""%*## %% ## #??? | | ??????????????????????##a " ####+##### #??? | | ???????????????????????#u "% % % #??? | | ???????????????????????#m " [ #??? | | ???????????????????????# #??? | | ???????????????????????# %" ####### ###+##??? | | ???????????????????????# ############?### ##?? | | ???????????????????????# ???????????????# T#?? | | ???????????????????????# ???????????????##" "###? | | ???????????????????????# ???????????????# #? | | ???????????????????????? ???????????????# ]]#? | | ?????????????????????????????????????????#[[ ] #? | | ?????????????????????????????????????????#[ ]#? | | ?????????????????????????????????????????########? | | ?????????????????????????????????????????????????? | | ?????????????????????????????????????????????????? | | ?????????????????????????????????????????????????? | | ?????????????????????????????????????????????????? | | ?????????????????????????????????????????????????? | | ?????????????????????????????????????????????????? | +----------------------------------------------------+ Best States ------------- Heat Dissipation 31 Energy Generation 23 Energy Capacity 535 Matter Stores 300 Matter Capacity 300 Sight Range 16 Terrain Scan Density 10 Additional Mass Support 9 Armor Coverage 150 Evasion (%) 44 Item Schematics ----------------- None Robot Schematics ------------------ None Fabricated ------------ Nothing Repaired ---------- Nothing Alien Tech Used ----------------- None Achievements -------------- None Challenges ------------ None Game ------ Seed DirtyMultireflexDerivative Manual? 0 Play Time 00:23:16 Cumulative 15.5 hours Start 2025.06.23 @ 17:52:19 End 2025.06.23 @ 20:04:09 Sessions 1 Manual Loads 0 Difficulty Rogue Special Mode None Game No. 51 Rogue 48 Adventurer 3 Explorer 0 Win Type - Total 0 Types 0/0/0/0/0/0/0/0/0/0 Lore% 11 Gallery% 21 Achievement% 20 Wizard Run 0 Options --------- Layout 0 ASCII 0 Keyboard 1 Movement Arrows Keybinds 0 Fullscreen 2 Font 24/Smallcaps Map View 91x25 Zoom Use 4% Tactical HUD 1 Map Filters NONE Filters NONE Steam 1 RUN: a4020aff-21d2-46db-8697-4362f03d7ebd